fUSD/lending_fUSD_20260428
["ID","MTS","AMOUNT","RATE_DAILY","PERIOD"]
[421282461,1777335032482,-2481.28,0.000101,3]
[421282471,1777335038423,-1102.89157076,0.000101,3]
[421282472,1777335038436,-796.24490861,0.000101,3]
[421282539,1777335040773,-791.23034,9.1e-05,2]
[421282541,1777335040784,-500.0,0.000101,2]
[421282544,1777335040794,-2517.1241,0.000101,2]
[421282546,1777335040803,-5809.33840702,0.000101,2]
[421282584,1777335041143,-272.62498521,0.000101,2]
[421282805,1777335043399,-541864.26670777,0.000101,2]
[421282807,1777335043409,-243.0,0.000101,3]
[421282809,1777335043420,-5529.0,0.000102,5]
[421282811,1777335043430,-8622.66589096,0.00010355,2]
[421282814,1777335043440,-150.0,0.00010459,2]
[421282816,1777335043451,-103443.1802,0.0001056,2]
[421282818,1777335043461,-2500.0,0.000106,2]
[421282820,1777335043471,-79952.82463536,0.000107,2]
[421282822,1777335043481,-661.44353039,0.00010827,2]
[421282824,1777335043491,-578.20924308,0.00011115,2]
[421282826,1777335043501,-5557.75644905,0.00011115,2]
[421282828,1777335043510,-151.0,0.00011115,2]
[421282830,1777335043520,-151.0,0.0001117,2]
[421282832,1777335043530,-151.0,0.00011225,2]
[421282834,1777335043542,-151.0,0.0001128,2]
[421282836,1777335043552,-151.0,0.00011335,2]
[421282838,1777335043562,-151.0,0.0001139,2]
[421282840,1777335043572,-151.0,0.00011445,2]
[421282843,1777335043583,-151.0,0.000115,2]
[421282845,1777335043598,-394.0,0.00011703,3]
[421282847,1777335043608,-357.1221797,0.00011715,2]
[421282899,1777335044092,-47597.73383557,0.00011715,2]
[421282929,1777335044359,-993.80145634,0.00011715,2]
[421282931,1777335044371,-510.07632359,0.00011715,2]
[421282933,1777335044380,-159.0243312,0.00012012,2]
[421282935,1777335044390,-192.7430634,0.00012012,2]
[421282937,1777335044399,-346.83808099,0.00012012,2]
[421284334,1777335083158,-2544.95796921,0.00012012,2]
[421284335,1777335083168,-6563.93,0.00012248,2]
[421284336,1777335083178,-729.40461304,0.00012635,2]
[421284337,1777335083188,-150.0,0.00012893,2]
[421284338,1777335083198,-5578.14523287,0.00012893,2]
[421284339,1777335083208,-150.0,0.00012893,2]
[421284340,1777335083218,-1966.74316965,0.00012893,2]
[421284341,1777335083228,-150.99,0.00013109,2]
[421284342,1777335083238,-299.99,0.00013109,2]
[421284343,1777335083248,-616.99200494,0.00013124,2]
[421284344,1777335083258,-9999.99,0.00013144,2]
[421284345,1777335083268,-394.0,0.00013405,3]
[421284346,1777335083278,-505.0,0.000136,2]
[421284347,1777335083287,-276.99573578,0.00013704,2]
[421284348,1777335083297,-1332.0,0.00013796,5]
[421284349,1777335083306,-647.86041768,0.00013989,2]
[421284350,1777335083316,-500.0,0.00013989,2]
[421284351,1777335083326,-500.0,0.00013989,2]
[421284352,1777335083339,-258.09569646,0.00013989,2]
[421284353,1777335083348,-543.62896673,0.00013989,2]
[421284354,1777335083358,-500.0,0.00013989,2]
[421284355,1777335083368,-14266.2924368,0.0001399,2]
[421284356,1777335083377,-10956.0504633,0.00014093,2]
[421284357,1777335083387,-3378.25322856,0.00014524,2]
[421284358,1777335083396,-2444.6252944,0.00014624,2]
[421284359,1777335083405,-500.0,0.00014624,2]
[421284360,1777335083415,-391.61560074,0.00014629,2]
[421284361,1777335083424,-500.0,0.00014629,2]
[421284362,1777335083433,-927.0,0.00014643,2]
[421284363,1777335083442,-1220.0,0.00014643,2]
[421284364,1777335083452,-6034.0,0.00014643,2]
[421284365,1777335083461,-476.542,0.00014643,2]
[421284366,1777335083470,-3782.0,0.00014643,2]
[421284367,1777335083480,-1048.0,0.00014843,2]
[421284368,1777335083489,-3531.0,0.00014843,2]
[421284369,1777335083498,-1350.0,0.00014843,2]
[421284370,1777335083507,-1266.0,0.00014843,2]
[421284371,1777335083516,-1893.0,0.00015054,2]
[421284372,1777335083526,-394.0,0.00015108,3]
[421284373,1777335083536,-162.27045424,0.000152,2]
[421284374,1777335083545,-3383.5519512,0.00015821,2]
[421284375,1777335083554,-228.88,0.00016,21]
[421284376,1777335083564,-151.0,0.00016116,2]
[421284377,1777335083573,-23998.28,0.00016116,2]
[421284378,1777335083583,-3378.2532285,0.00016432,2]
[421284379,1777335083592,-2243.188987,0.00016438,2]
[421284380,1777335083602,-2243.188987,0.00016438,2]
[421284381,1777335083611,-2243.188987,0.00016438,2]
[421284382,1777335083620,-2243.188987,0.00016438,2]
[421284383,1777335083629,-500.0,0.00016438,2]
[421284384,1777335083639,-500.0,0.00016438,2]
[421284385,1777335083648,-500.0,0.00016438,2]
[421284386,1777335083657,-500.0,0.00016438,2]
[421284387,1777335083667,-500.0,0.00016438,2]
[421284388,1777335083676,-180.0,0.000166,12]
[421284389,1777335083685,-394.0,0.0001681,3]
[421284390,1777335083694,-1000.0,0.00016986,2]
[421284391,1777335083704,-1000.0,0.00016986,2]
[421284392,1777335083713,-1000.0,0.00016986,2]
[421284393,1777335083722,-1000.0,0.00016986,2]
[421284394,1777335083731,-1000.0,0.00016986,2]
[421284395,1777335083741,-1500.0,0.00017534,2]
[421284396,1777335083751,-1500.0,0.00017534,2]
[421284397,1777335083760,-1500.0,0.00017534,2]
[421284398,1777335083769,-1500.0,0.00017534,2]
[421284399,1777335083839,-1500.0,0.00017534,2]
[421284400,1777335083848,-927.0,0.00017643,2]
[421284401,1777335083858,-1218.0,0.00017643,2]
[421284402,1777335083867,-6034.0,0.00017643,2]
[421284403,1777335083877,-416.0,0.00017643,2]
[421284404,1777335083886,-1633.0,0.00017726,5]
[421284405,1777335083895,-3195.26927111,0.00017727,2]
[421284406,1777335083905,-3195.26927111,0.00017727,2]
[421284407,1777335083914,-3195.26927111,0.00017727,2]
[421284408,1777335083923,-3195.26927111,0.00017727,2]
[421284409,1777335083933,-3195.26927111,0.00017727,2]
[421284410,1777335083942,-3195.26927111,0.00017727,2]
[421284411,1777335083951,-3195.26927111,0.00017727,2]
[421284412,1777335083960,-3195.26927111,0.00017727,2]
[421284413,1777335083970,-3195.26927111,0.00017727,2]
[421284414,1777335083979,-3195.26927111,0.00017727,2]
[421284415,1777335083988,-3195.26927111,0.00017727,2]
[421284416,1777335083997,-3195.26927111,0.00017727,2]
[421284417,1777335084007,-3195.26927111,0.00017727,2]
[421284418,1777335084016,-3195.26927111,0.00017727,2]
[421284419,1777335084025,-3195.26927111,0.00017727,2]
[421284420,1777335084035,-3195.26927111,0.00017727,2]
[421284421,1777335084044,-3195.26927111,0.00017727,2]
[421284422,1777335084053,-3195.26927111,0.00017727,2]
[421284423,1777335084062,-3195.26927111,0.00017727,2]
[421284424,1777335084071,-3195.26927111,0.00017727,2]
[421284425,1777335084081,-3195.26927111,0.00017727,2]
[421284426,1777335084090,-3195.26927111,0.00017727,2]
[421284427,1777335084100,-3195.26927111,0.00017727,2]
[421284428,1777335084109,-3195.26927111,0.00017727,2]
[421284429,1777335084118,-3195.26927111,0.00017727,2]
[421284430,1777335084127,-3195.26927111,0.00017727,2]
[421284431,1777335084136,-3195.26927111,0.00017727,2]
[421284432,1777335084145,-3195.26927111,0.00017727,2]
[421284433,1777335084154,-3195.26927111,0.00017727,2]
[421284434,1777335084163,-3195.26927111,0.00017727,2]
[421284435,1777335084173,-3195.26927111,0.00017727,2]
[421284436,1777335084182,-3195.26927111,0.00017727,2]
[421284437,1777335084191,-3195.26927111,0.00017727,2]
[421284438,1777335084200,-3195.26927111,0.00017727,2]
[421284439,1777335084209,-3195.26927111,0.00017727,2]
[421284440,1777335084219,-3195.26927111,0.00017727,2]
[421284441,1777335084227,-3195.26927111,0.00017727,2]
[421284442,1777335084236,-3195.26927111,0.00017727,2]
[421284443,1777335084246,-3195.26927111,0.00017727,2]
[421284444,1777335084255,-3195.26927111,0.00017727,2]
[421284445,1777335084264,-3195.26927111,0.00017727,2]
[421284446,1777335084274,-3195.26927111,0.00017727,2]
[421284447,1777335084283,-3195.26927111,0.00017727,2]
[421284448,1777335084292,-3195.26927111,0.00017727,2]
[421284449,1777335084301,-3195.26927111,0.00017727,2]
[421284450,1777335084311,-3195.26927111,0.00017727,2]
[421284451,1777335084320,-3195.26927111,0.00017727,2]
[421284452,1777335084329,-3195.26927111,0.00017727,2]
[421284453,1777335084338,-3195.26927111,0.00017727,2]
[421284454,1777335084347,-3195.26927111,0.00017727,2]
[421284455,1777335084357,-3195.26927111,0.00017727,2]
[421284456,1777335084366,-3195.26927111,0.00017727,2]
[421284457,1777335084376,-3195.26927111,0.00017727,2]
[421284458,1777335084385,-3195.26927111,0.00017727,2]
[421284459,1777335084394,-3195.26927111,0.00017727,2]
[421284460,1777335084404,-3195.26927111,0.00017727,2]
[421284461,1777335084413,-3195.26927111,0.00017727,2]
[421284462,1777335084422,-3195.26927111,0.00017727,2]
[421284463,1777335084431,-3195.26927111,0.00017727,2]
[421284464,1777335084442,-3195.26927111,0.00017727,2]
[421284465,1777335084451,-3195.26927111,0.00017727,2]
[421284466,1777335084460,-3195.26927111,0.00017727,2]
[421284467,1777335084470,-3195.26927111,0.00017727,2]
[421284468,1777335084479,-3195.26927111,0.00017727,2]
[421284469,1777335084488,-3195.26927111,0.00017727,2]
[421284470,1777335084498,-3195.26927111,0.00017727,2]
[421284471,1777335084507,-3195.26927111,0.00017727,2]
[421284472,1777335084517,-3642.90127581,0.00017727,2]
[421284473,1777335084526,-3642.90127581,0.00017727,2]
[421284474,1777335084535,-3642.90127581,0.00017727,2]
[421284475,1777335084545,-3642.90127581,0.00017727,2]
[421284476,1777335084554,-3642.90127581,0.00017727,2]
[421284477,1777335084563,-3642.90127581,0.00017727,2]
[421284478,1777335084572,-3642.90127581,0.00017727,2]
[421284479,1777335084581,-3642.90127581,0.00017727,2]
[421284480,1777335084590,-3642.90127581,0.00017727,2]
[421284481,1777335084600,-3642.90127581,0.00017727,2]
[421284482,1777335084610,-3642.90127581,0.00017727,2]
[421284483,1777335084620,-3642.90127581,0.00017727,2]
[421284484,1777335084630,-3642.90127581,0.00017727,2]
[421284485,1777335084640,-3642.90127581,0.00017727,2]
[421284486,1777335084649,-3642.90127581,0.00017727,2]
[421284487,1777335084658,-3642.90127581,0.00017727,2]
[421284488,1777335084668,-3642.90127581,0.00017727,2]
[421284489,1777335084677,-3642.90127581,0.00017727,2]
[421284490,1777335084686,-3642.90127581,0.00017727,2]
[421284491,1777335084696,-3642.90127581,0.00017727,2]
[421284492,1777335084705,-3642.90127581,0.00017727,2]
[421284493,1777335084714,-2243.188987,0.00017727,2]
[421284494,1777335084723,-2243.188987,0.00017727,2]
[421284495,1777335084732,-2243.188987,0.00017727,2]
[421284496,1777335084741,-2243.188987,0.00017727,2]
[421284497,1777335084751,-2243.188987,0.00017727,2]
[421284498,1777335084761,-2243.188987,0.00017727,2]
[421284499,1777335084770,-2243.188987,0.00017727,2]
[421284500,1777335084779,-2243.188987,0.00017727,2]
[421284501,1777335084789,-2243.188987,0.00017727,2]
[421284502,1777335084798,-2243.188987,0.00017727,2]
[421284503,1777335084807,-2243.188987,0.00017727,2]
[421284504,1777335084816,-2243.188987,0.00017727,2]
[421284505,1777335084827,-151.0,0.00017727,2]
[421284506,1777335084837,-151.0,0.00017727,2]
[421284507,1777335084847,-17141.63,0.00017728,2]
[421284508,1777335084856,-2172.99,0.000178,2]
[421284509,1777335084865,-1448.08,0.000178,2]
[421284510,1777335084876,-763.087,0.00017843,2]
[421284511,1777335084886,-3531.0,0.00017843,2]
[421284512,1777335084895,-1348.0,0.00017843,2]
[421284513,1777335084905,-1266.0,0.00017843,2]
[421284514,1777335084914,-2200.0,0.000179,6]
[421284515,1777335084923,-993.0,0.00018024,5]
[421284516,1777335084933,-2000.0,0.00018082,2]
[421284517,1777335084942,-2000.0,0.00018082,2]
[421284518,1777335084952,-2000.0,0.00018082,2]
[421284519,1777335084962,-2000.0,0.00018082,2]
[421284520,1777335084972,-2000.0,0.00018082,2]
[421284521,1777335084981,-3378.2532285,0.00018341,2]
[421284522,1777335084991,-394.0,0.00018513,3]
[421284523,1777335085001,-2500.0,0.0001863,2]
[421284524,1777335085010,-2500.0,0.0001863,2]
[421284525,1777335085020,-2500.0,0.0001863,2]
[421284526,1777335085029,-502.76500494,0.0001863,2]
[421284527,1777335085039,-2500.0,0.0001863,2]
[421284528,1777335085048,-822.0,0.00018684,5]
[421284529,1777335085058,-166.9,0.00018785,2]
[421284530,1777335085068,-3000.0,0.00019178,2]
[421284531,1777335085077,-3000.0,0.00019178,2]
[421284532,1777335085087,-3000.0,0.00019178,2]
[421284533,1777335085096,-503.02386781,0.00019178,2]
[421284534,1777335085105,-1643.51284795,0.00019726,2]
[421284535,1777335085114,-3500.0,0.00019726,2]
[421284536,1777335085126,-3500.0,0.00019726,2]
[421284537,1777335085135,-3839.0,0.0001992,2]
[421284538,1777335085144,-160.32,0.0002,9]
[421284539,1777335085154,-4376.0,0.0002,2]
[421284540,1777335085164,-9277.0,0.0002,2]
[421284541,1777335085173,-2243.188987,0.0002,2]
[421284542,1777335085182,-2243.188987,0.0002,2]
[421284543,1777335085191,-2243.188987,0.0002,2]
[421284544,1777335085200,-2243.188986,0.0002,2]
[421284545,1777335085209,-6143.74,0.00020145,2]
[421284546,1777335085219,-394.0,0.00020215,3]
[421284547,1777335085228,-3378.2532285,0.00020249,2]
[421284548,1777335085237,-4000.0,0.00020274,2]
[421284549,1777335085246,-3508.88562607,0.00020274,2]
[421284550,1777335085255,-500.0,0.00020438,2]
[421284551,1777335085264,-927.0,0.00020643,2]
[421284552,1777335085274,-6034.0,0.00020643,2]
[421284553,1777335085284,-416.0,0.00020643,2]
[421284554,1777335085294,-4500.0,0.00020822,2]
[421284555,1777335085304,-166.9,0.00021131,2]
[421284556,1777335085314,-3403.56013267,0.0002137,2]
[421284557,1777335085324,-500.0,0.00021918,120]
[421284558,1777335085336,-394.0,0.00021918,3]
[421284559,1777335085345,-3378.2532285,0.00022158,2]
[421284560,1777335085355,-500.0,0.00022247,120]
[421284561,1777335085365,-500.0,0.00022411,120]
[421284562,1777335085375,-500.0,0.00022575,120]
[421284563,1777335085386,-500.0,0.00022904,120]
[421284564,1777335085396,-505.0,0.00023086,10]
[421284565,1777335085405,-1448.65581537,0.0002314,2]
[421284566,1777335085415,-965.39120219,0.0002314,2]
[421284567,1777335085424,-500.0,0.00023151,120]
[421284568,1777335085434,-263.372589,0.0002326,14]
[421284569,1777335085443,-500.0,0.00023397,120]
[421284570,1777335085452,-166.9,0.00023478,2]
[421284571,1777335085462,-500.0,0.00023562,120]
[421284572,1777335085471,-394.0,0.00023621,3]
[421284573,1777335085480,-6034.0,0.00023643,2]
[421284574,1777335085488,-533.80859,0.00023735,120]
[421284575,1777335085498,-500.0,0.0002389,120]
[421284576,1777335085507,-263.372588,0.00023913,120]
[421284577,1777335085515,-664.78285,0.00023913,120]
[421284578,1777335085526,-162.739597,0.00023914,14]
[421284579,1777335085535,-225.631612,0.00023914,14]
[421284580,1777335085544,-3378.2532285,0.00024066,2]
[421284581,1777335085554,-500.0,0.00024219,120]
[421284582,1777335085563,-500.0,0.00024384,120]
[421284583,1777335085572,-658.922603,0.00024402,120]
[421284584,1777335085581,-732.328184,0.00024402,120]
[421284585,1777335085591,-675.697508,0.00024402,120]
[421284586,1777335085599,-1015.342249,0.00024402,120]
[421284587,1777335085609,-500.0,0.00024548,120]
[421284588,1777335085619,-500.0,0.00024877,120]
[421284589,1777335085629,-729.40461304,0.00025135,2]
[421284590,1777335085639,-500.0,0.00025205,120]
[421284591,1777335085649,-394.0,0.00025323,3]
[421284592,1777335085658,-500.0,0.0002537,120]
[421284593,1777335085668,-500.0,0.00025616,120]
[421284594,1777335085677,-166.9,0.00025824,2]
[421284595,1777335085686,-500.0,0.00025863,120]
[421284596,1777335085695,-3378.2532285,0.00025975,2]
[421284597,1777335085704,-150.0,0.00025989,7]
[421284598,1777335085714,-150.0,0.00025989,4]
[421284599,1777335085723,-150.0,0.00025989,4]
[421284600,1777335085732,-150.0,0.00025989,4]
[421284601,1777335085742,-500.0,0.00026192,120]
[421284602,1777335085751,-500.0,0.00026356,120]
[421284603,1777335085761,-354.12,0.000264,14]
[421284604,1777335085770,-500.0,0.00026521,120]
[421284605,1777335085779,-6034.0,0.00026643,2]
[421284606,1777335085788,-500.0,0.00026849,120]
[421284607,1777335085798,-394.0,0.00027026,3]
[421284608,1777335085807,-500.0,0.00027178,120]
[421284609,1777335085816,-207.592229,0.00027295,14]
[421284610,1777335085826,-500.0,0.00027342,120]
[421284611,1777335085835,-500.0,0.00027397,2]
[421284612,1777335085845,-396.7863722,0.00027397,2]
[421284613,1777335085854,-150.0,0.00027397,7]
[421284614,1777335085864,-349.63,0.00027397,10]
[421284615,1777335085873,-666.72,0.00027397,10]
[421284616,1777335085882,-555.6,0.00027397,10]
[421284617,1777335085891,-175.28,0.000274,7]
[421284618,1777335085900,-12813.22,0.000274,7]
[421284619,1777335085909,-150.0,0.00027433,7]
[421284620,1777335085919,-150.0,0.00027433,7]
[421284621,1777335085928,-500.0,0.00027452,2]
[421284622,1777335085937,-258.526663,0.000275,14]
[421284623,1777335085946,-500.0,0.00027507,120]
[421284624,1777335085956,-500.0,0.00027507,2]
[421284625,1777335085965,-500.0,0.00027562,2]
[421284626,1777335085974,-19697.63,0.000276,2]
[421284627,1777335085984,-500.0,0.00027617,2]
[421284628,1777335085993,-584.2971071,0.00027671,7]
[421284629,1777335086002,-500.0,0.00027672,2]
[421284630,1777335086012,-500.0,0.00027836,120]
[421284631,1777335086022,-3378.2532285,0.00027883,2]
[421284632,1777335086032,-500.00294458,0.00028,12]
[421284633,1777335086042,-162.27045424,0.00028,7]
[421284634,1777335086051,-256.247679,0.00028062,14]
[421284635,1777335086061,-284.794294,0.00028062,14]
[421284636,1777335086070,-262.771253,0.00028062,14]
[421284637,1777335086080,-394.855319,0.00028062,14]
[421284638,1777335086090,-500.0,0.00028082,120]
[421284639,1777335086099,-166.9,0.0002817,2]
[421284640,1777335086108,-354.12,0.000283,20]
[421284641,1777335086118,-500.0,0.00028329,120]
[421284642,1777335086128,-500.0,0.00028493,120]
[421284643,1777335086138,-4500.0,0.000286,10]
[421284644,1777335086148,-6800.0,0.000287,10]
[421284645,1777335086158,-394.0,0.00028728,3]
[421284646,1777335086168,-401.4273978,0.000288,2]
[421284647,1777335086177,-287.43257498,0.000288,2]
[421284648,1777335086187,-5000.0,0.000288,2]
[421284649,1777335086196,-9100.0,0.000288,10]
[421284650,1777335086205,-160.80602638,0.000288,2]
[421284651,1777335086214,-1895.20465624,0.000288,2]
[421284652,1777335086224,-500.0,0.00028822,120]
[421284653,1777335086233,-150.0,0.00028877,7]
[421284654,1777335086242,-150.0,0.00028877,7]
[421284655,1777335086252,-1093.8672339,0.00028899,15]
[421284656,1777335086261,-272.78,0.00028899,2]
[421284657,1777335086271,-2500.0,0.00028899,5]
[421284658,1777335086281,-2500.0,0.00028899,5]
[421284659,1777335086289,-2500.0,0.00028899,5]
[421284660,1777335086299,-2500.0,0.00028899,5]
[421284661,1777335086309,-2500.0,0.00028899,5]
[421284662,1777335086318,-2500.0,0.00028899,5]
[421284663,1777335086328,-2500.0,0.00028899,5]
[421284664,1777335086337,-2500.0,0.00028899,5]
[421284665,1777335086347,-2515.74888853,0.00028899,5]
[421284666,1777335086356,-1659.0,0.000289,5]
[421284667,1777335086366,-518771.20955195,0.000289,2]
[421284668,1777335086377,-1359006.78789955,0.000289,2]
[421284669,1777335086386,-1439243.463748,0.000289,2]
[421284670,1777335086396,-553749.65826835,0.000289,2]
[421284671,1777335086406,-103658.05638139,0.000289,2]
[421284672,1777335086416,-2901.13,0.000289,14]
[421284673,1777335086426,-1851.91,0.000289,7]
[421284674,1777335086435,-11400.0,0.000289,10]
[421284675,1777335086445,-6028.0,0.00029643,2]
[421284676,1777335086455,-3378.2532285,0.00029792,2]
[421284677,1777335086465,-162.27045424,0.000299,3]
[421284678,1777335086475,-394.0,0.00030431,3]
[421284679,1777335086485,-166.9,0.00030517,2]
[421284680,1777335086495,-640.13757015,0.00030621,88]
[421284681,1777335086504,-207.592229,0.00030855,14]
[421284682,1777335086514,-287.43257496,0.00031047,2]
[421284683,1777335086523,-258.526663,0.00031087,14]
[421284684,1777335086532,-3378.2532285,0.000317,2]
[421284685,1777335086542,-256.247679,0.00031723,14]
[421284686,1777335086551,-284.794294,0.00031723,14]
[421284687,1777335086561,-262.771253,0.00031723,14]
[421284688,1777335086570,-394.855319,0.00031723,14]
[421284689,1777335086579,-2901.13,0.000318,14]
[421284690,1777335086589,-1851.91,0.000318,7]
[421284691,1777335086598,-19697.63,0.000319,2]
[421284692,1777335086607,-1000.0,0.00032,49]
[421284693,1777335086617,-394.0,0.00032134,3]
[421284694,1777335086626,-281.2355043,0.00032311,60]
[421284695,1777335086636,-725.8952707,0.00032311,60]
[421284696,1777335086645,-591.9720596,0.00032311,60]
[421284697,1777335086654,-386.1025824,0.00032311,60]
[421284698,1777335086664,-500.0,0.00032311,60]
[421284699,1777335086673,-828.5665485,0.00032311,60]
[421284700,1777335086683,-314.9512598,0.00032311,60]
[421284701,1777335086692,-371.8845997,0.00032311,60]
[421284702,1777335086703,-195.4475611,0.00032311,60]
[421284703,1777335086712,-270.0544139,0.00032311,60]
[421284704,1777335086721,-505.0,0.00032571,18]
[421284705,1777335086731,-166.9,0.00032863,5]
[421284706,1777335086740,-150.0,0.00032877,5]
[421284707,1777335086750,-200.0,0.00032877,5]
[421284708,1777335086759,-150.0,0.00032877,5]
[421284709,1777335086768,-287.43257496,0.00033294,2]
[421284710,1777335086781,-394.0,0.00033836,3]
[421284711,1777335086791,-1384.72712199,0.00034154,96]
[421284712,1777335086800,-2308.481,0.00034763,40]
[421284713,1777335086810,-173.72,0.00034763,40]
[421284714,1777335086819,-2901.13,0.000348,14]
[421284715,1777335086829,-1851.91,0.000348,7]
[421284716,1777335086838,-3319.28,0.00035,55]
[421284717,1777335086848,-1603.0,0.00035,120]
[421284718,1777335086858,-166.9,0.0003521,7]
[421284719,1777335086868,-394.0,0.00035539,3]
[421284720,1777335086879,-401.42739778,0.00035541,2]
[421284721,1777335086888,-287.43257496,0.00035541,2]
[421284722,1777335086898,-19697.63,0.000357,2]
[421284723,1777335086908,-1895.20465624,0.00035803,2]
[421284724,1777335086917,-394.0,0.00037241,3]
[421284725,1777335086927,-12813.22,0.000373,7]
[421284726,1777335086936,-166.9,0.00037556,30]
[421284727,1777335086946,-2819.0,0.0003765,11]
[421284728,1777335086955,-287.43257496,0.00037787,2]
[421284729,1777335086965,-2901.13,0.000378,14]
[421284730,1777335086974,-1851.91,0.000379,7]
[421284731,1777335086984,-10284.96,0.00038034,30]
[421284732,1777335086993,-1025.38414455,0.00038143,2]
[421284733,1777335087003,-333.0,0.00038143,2]
[421284734,1777335087013,-342.63708661,0.00038657,2]
[421284735,1777335087023,-342.63708661,0.00038657,2]
[421284736,1777335087032,-342.63708661,0.00038657,2]
[421284737,1777335087042,-342.63708661,0.00038657,2]
[421284738,1777335087052,-456.84944885,0.00038657,2]
[421284739,1777335087062,-332.95667608,0.00038657,2]
[421284740,1777335087072,-2819.0,0.000389,11]
[421284741,1777335087081,-394.0,0.00038944,3]
[421284742,1777335087091,-772.23559713,0.00038965,21]
[421284743,1777335087101,-19697.63,0.000392,2]
[421284744,1777335087110,-2819.0,0.0003922,11]
[421284745,1777335087120,-188.393476,0.00039348,32]
[421284746,1777335087130,-2819.0,0.0003944,11]
[421284747,1777335087140,-1679.08190339,0.00039455,108]
[421284748,1777335087149,-2819.0,0.00039599,11]
[421284749,1777335087159,-2819.0,0.00039599,11]
[421284750,1777335087169,-227.37,0.00039602,30]
[421284751,1777335087179,-500.0,0.00039686,60]
[421284752,1777335087189,-1763.15,0.000397,120]
[421284753,1777335087199,-1763.15,0.000397,60]
[421284754,1777335087208,-2758.431,0.000397,120]
[421284755,1777335087218,-2758.431,0.000397,120]
[421284756,1777335087227,-2758.43,0.000397,120]
[421284757,1777335087237,-1202.2899,0.000397,120]
[421284758,1777335087247,-1088.6895,0.000397,60]
[421284759,1777335087256,-2901.13,0.000397,14]
[421284760,1777335087266,-160.6,0.000399,120]
[421284761,1777335087276,-1851.91,0.000399,30]
[421284762,1777335087286,-166.9,0.00039903,30]
[421284763,1777335087295,-161.0,0.0004,120]
[421284764,1777335087305,-3340.89991765,0.0004,120]
[421284765,1777335087315,-1000.0,0.0004,60]
[421284766,1777335087324,-162.27045424,0.0004,3]
[421284767,1777335087334,-287.43257496,0.00040034,2]
[421284768,1777335087344,-2819.0,0.00040099,11]
[421284769,1777335087354,-2819.0,0.00040139,11]
[421284770,1777335087363,-2819.0,0.0004018,11]
[421284771,1777335087373,-2819.0,0.00040319,11]
[421284772,1777335087385,-2819.0,0.00040399,11]
[421284773,1777335087395,-2819.0,0.000404,11]
[421284774,1777335087404,-2819.0,0.00040419,11]
[421284775,1777335087414,-2819.0,0.00040422,11]
[421284776,1777335087424,-2819.0,0.00040422,11]
[421284777,1777335087433,-2819.0,0.00040459,11]
[421284778,1777335087443,-2819.0,0.00040559,11]
[421284779,1777335087453,-394.0,0.00040646,3]
[421284780,1777335087463,-150.0,0.00040689,120]
[421284781,1777335087472,-500.0,0.00040702,21]
[421284782,1777335087482,-500.0,0.00040702,21]
[421284783,1777335087492,-2819.0,0.00040719,11]
[421284784,1777335087501,-2819.0,0.00040742,11]
[421284785,1777335087511,-2819.0,0.00040779,11]
[421284786,1777335087521,-175.28,0.000408,30]
[421284787,1777335087531,-2901.13,0.000408,14]
[421284788,1777335087540,-1851.91,0.000408,30]
[421284789,1777335087550,-700.43345279,0.00040853,60]
[421284790,1777335087559,-2819.0,0.00040879,11]
[421284791,1777335087569,-19697.63,0.000409,2]
[421284792,1777335087579,-3778.91470918,0.000409,30]
[421284793,1777335087589,-2200.0,0.000409,14]
[421284794,1777335087599,-203419.0,0.0004095,60]
[421284795,1777335087609,-2819.0,0.00040959,11]
[421284796,1777335087619,-500.0,0.00040973,5]
[421284797,1777335087628,-210.0541,0.00041,120]
[421284798,1777335087639,-300666.1473841,0.00041,30]